[Event "*** SCC Grand Prix: Titled Tuesday Blitz"]
[Site "Chess.com"]
[Date "2020.07.21"]
[Round "9"]
[White "anpospan"]
[Black "Giraffe_Chess"]
[Result "0-1"]
[WhiteElo "2273"]
[BlackElo "2386"]
[TimeControl "180+1"]
[EndTime "11:49:43 PDT"]
[Termination "Giraffe_Chess won on time"]

1. Nf3 {[%clk 0:03:00.9]} 1... f5 {[%clk 0:02:59.2]} 2. e4 {[%clk 0:03:00.2]}
2... fxe4 {[%clk 0:02:57.4]} 3. Ng5 {[%clk 0:03:00.2]} 3... Nf6 {[%clk
0:02:57.5]} 4. d3 {[%clk 0:02:59.9]} 4... e5 {[%clk 0:02:52.9]} 5. Nxe4 {[%clk
0:02:54.9]} 5... Nc6 {[%clk 0:02:47.8]} 6. Bg5 {[%clk 0:02:48.6]} 6... Be7
{[%clk 0:02:46.7]} 7. Bxf6 {[%clk 0:02:43.4]} 7... Bxf6 {[%clk 0:02:47.6]} 8.
Qh5+ {[%clk 0:02:38.3]} 8... g6 {[%clk 0:02:47.3]} 9. Qh6 {[%clk 0:02:25.6]}
9... d5 {[%clk 0:02:46.5]} 10. Nxf6+ {[%clk 0:02:19.7]} 10... Qxf6 {[%clk
0:02:47.4]} 11. c3 {[%clk 0:02:10]} 11... Be6 {[%clk 0:02:45]} 12. Be2 {[%clk
0:02:06.4]} 12... O-O-O {[%clk 0:02:44.6]} 13. O-O {[%clk 0:02:04.7]} 13... Ne7
{[%clk 0:02:42.2]} 14. Qe3 {[%clk 0:01:59.2]} 14... Kb8 {[%clk 0:02:40.7]} 15.
Qc5 {[%clk 0:01:51]} 15... Nf5 {[%clk 0:02:35.9]} 16. Nd2 {[%clk 0:01:49.4]}
16... Nh4 {[%clk 0:02:28.9]} 17. Nf3 {[%clk 0:01:41.7]} 17... Bg4 {[%clk
0:02:26.3]} 18. Qe3 {[%clk 0:01:39.3]} 18... d4 {[%clk 0:02:00.4]} 19. cxd4
{[%clk 0:01:15.8]} 19... exd4 {[%clk 0:01:48]} 20. Qe4 {[%clk 0:01:14.5]} 20...
Bxf3 {[%clk 0:01:41.1]} 21. Bxf3 {[%clk 0:01:13.2]} 21... Nxf3+ {[%clk
0:01:40.2]} 22. Qxf3 {[%clk 0:01:12.8]} 22... Qxf3 {[%clk 0:01:38.6]} 23. gxf3
{[%clk 0:01:12.9]} 23... Rhe8 {[%clk 0:01:34]} 24. Rae1 {[%clk 0:01:10.5]} 24...
c5 {[%clk 0:01:33.8]} 25. Kg2 {[%clk 0:01:06.2]} 25... Kc7 {[%clk 0:01:33.8]}
26. f4 {[%clk 0:01:03.6]} 26... Kd6 {[%clk 0:01:33.8]} 27. Kf3 {[%clk
0:01:01.5]} 27... Kd5 {[%clk 0:01:34]} 28. b3 {[%clk 0:01:01.3]} 28... b5 {[%clk
0:01:34]} 29. Rxe8 {[%clk 0:00:53.1]} 29... Rxe8 {[%clk 0:01:33.7]} 30. Rc1
{[%clk 0:00:52.4]} 30... Rf8 {[%clk 0:01:31.7]} 31. Kg4 {[%clk 0:00:50.3]} 31...
Rf5 {[%clk 0:01:30.8]} 32. h4 {[%clk 0:00:47.2]} 32... Rf6 {[%clk 0:01:23.9]}
33. Re1 {[%clk 0:00:43.1]} 33... Re6 {[%clk 0:01:03.4]} 34. Rg1 {[%clk
0:00:35.5]} 34... Re2 {[%clk 0:01:01.6]} 35. Kf3 {[%clk 0:00:29.8]} 35... Rxa2
{[%clk 0:01:00.5]} 36. Rg5+ {[%clk 0:00:29]} 36... Kd6 {[%clk 0:00:57.2]} 37. h5
{[%clk 0:00:28.5]} 37... gxh5 {[%clk 0:00:55.1]} 38. Rxh5 {[%clk 0:00:28.6]}
38... a5 {[%clk 0:00:50.4]} 39. Rh6+ {[%clk 0:00:22.9]} 39... Kd5 {[%clk
0:00:50.2]} 40. Rh5+ {[%clk 0:00:22.4]} 40... Kd6 {[%clk 0:00:50]} 41. Rh6+
{[%clk 0:00:22.4]} 41... Ke7 {[%clk 0:00:48.2]} 42. Rxh7+ {[%clk 0:00:22.4]}
42... Kf6 {[%clk 0:00:48.3]} 43. Rb7 {[%clk 0:00:19]} 43... b4 {[%clk
0:00:31.3]} 44. Rb6+ {[%clk 0:00:18.4]} 44... Kf5 {[%clk 0:00:30.1]} 45. Rb5
{[%clk 0:00:17.9]} 45... Rc2 {[%clk 0:00:29.7]} 46. Rxa5 {[%clk 0:00:17.5]}
46... Rc3 {[%clk 0:00:30]} 47. Ke2 {[%clk 0:00:17.2]} 47... Kxf4 {[%clk
0:00:29.8]} 48. Kd2 {[%clk 0:00:15.5]} 48... Ke5 {[%clk 0:00:29.6]} 49. f3
{[%clk 0:00:14.1]} 49... Kd5 {[%clk 0:00:28.3]} 50. f4 {[%clk 0:00:13.1]} 50...
Rxb3 {[%clk 0:00:28.4]} 51. Ra8 {[%clk 0:00:12.9]} 51... Rb2+ {[%clk 0:00:28.6]}
52. Kd1 {[%clk 0:00:11.9]} 52... Rf2 {[%clk 0:00:28.3]} 53. Rd8+ {[%clk
0:00:11.1]} 53... Kc6 {[%clk 0:00:27.9]} 54. Rc8+ {[%clk 0:00:10.8]} 54... Kb5
{[%clk 0:00:28.2]} 55. Rb8+ {[%clk 0:00:10.4]} 55... Ka4 {[%clk 0:00:28.4]} 56.
Rc8 {[%clk 0:00:10.6]} 56... Kb5 {[%clk 0:00:27.4]} 57. Rb8+ {[%clk 0:00:10.5]}
57... Ka6 {[%clk 0:00:27.8]} 58. Rc8 {[%clk 0:00:09.5]} 58... Kb6 {[%clk
0:00:27.7]} 59. Rb8+ {[%clk 0:00:09.1]} 59... Kc7 {[%clk 0:00:28]} 60. Rb5
{[%clk 0:00:09]} 60... Kc6 {[%clk 0:00:27]} 61. Rb8 {[%clk 0:00:09.1]} 61...
Rxf4 {[%clk 0:00:27.4]} 62. Rc8+ {[%clk 0:00:09.1]} 62... Kb5 {[%clk 0:00:27.4]}
63. Rb8+ {[%clk 0:00:09]} 63... Ka4 {[%clk 0:00:27.7]} 64. Rc8 {[%clk
0:00:09.2]} 64... Rf5 {[%clk 0:00:27.9]} 65. Kc2 {[%clk 0:00:09.2]} 65... b3+
{[%clk 0:00:28.2]} 66. Kb2 {[%clk 0:00:07.5]} 66... Rf2+ {[%clk 0:00:27.9]} 67.
Kb1 {[%clk 0:00:07.1]} 67... Kb4 {[%clk 0:00:28]} 68. Rc7 {[%clk 0:00:06]} 68...
Rd2 {[%clk 0:00:22.8]} 69. Rc8 {[%clk 0:00:02.7]} 69... Rxd3 {[%clk 0:00:22.9]}
0-1

[Event "*** SCC Grand Prix: Titled Tuesday Blitz"]
[Site "Chess.com"]
[Date "2020.07.21"]
[Round "9"]
[White "Fore_Man"]
[Black "harlem4brew"]
[Result "1-0"]
[WhiteElo "2336"]
[BlackElo "2090"]
[TimeControl "180+1"]
[EndTime "11:49:43 PDT"]
[Termination "Fore_Man won by checkmate"]

1. Nf3 {[%clk 0:03:00.9]} 1... e6 {[%clk 0:02:59]} 2. c4 {[%clk 0:02:58.8]} 2...
d5 {[%clk 0:02:59.9]} 3. d4 {[%clk 0:02:57.6]} 3... Nf6 {[%clk 0:02:58.9]} 4. g3
{[%clk 0:02:57.6]} 4... Bb4+ {[%clk 0:02:58.2]} 5. Nbd2 {[%clk 0:02:56.9]} 5...
dxc4 {[%clk 0:02:58.3]} 6. Bg2 {[%clk 0:02:52.1]} 6... c5 {[%clk 0:02:57.6]} 7.
dxc5 {[%clk 0:02:48.8]} 7... Bxc5 {[%clk 0:02:54.5]} 8. O-O {[%clk 0:02:44.8]}
8... O-O {[%clk 0:02:51.5]} 9. Nxc4 {[%clk 0:02:43.3]} 9... Nc6 {[%clk
0:02:49.3]} 10. a3 {[%clk 0:02:41.1]} 10... a5 {[%clk 0:02:46.8]} 11. Bf4 {[%clk
0:02:33.1]} 11... Nd5 {[%clk 0:02:46]} 12. Bd2 {[%clk 0:02:26.3]} 12... b5
{[%clk 0:02:39.8]} 13. Nce5 {[%clk 0:02:22.5]} 13... Nxe5 {[%clk 0:02:37.4]} 14.
Nxe5 {[%clk 0:02:21.6]} 14... Bb7 {[%clk 0:02:33.9]} 15. Rc1 {[%clk 0:02:13.9]}
15... Bd4 {[%clk 0:02:32.2]} 16. Nd3 {[%clk 0:01:47]} 16... Bf6 {[%clk
0:02:25.4]} 17. Qb3 {[%clk 0:01:43.5]} 17... Ba6 {[%clk 0:02:20.3]} 18. Nc5
{[%clk 0:01:41.1]} 18... b4 {[%clk 0:02:13.2]} 19. Nxa6 {[%clk 0:01:35.2]} 19...
Rxa6 {[%clk 0:02:12.1]} 20. axb4 {[%clk 0:01:17.8]} 20... axb4 {[%clk
0:02:10.6]} 21. Rfd1 {[%clk 0:01:07]} 21... Qa5 {[%clk 0:02:07.9]} 22. Bxd5
{[%clk 0:00:58.1]} 22... Qxd5 {[%clk 0:02:03.2]} 23. Qxd5 {[%clk 0:00:57]} 23...
exd5 {[%clk 0:02:04.1]} 24. Bxb4 {[%clk 0:00:56.7]} 24... Rd8 {[%clk 0:02:01.7]}
25. Bc3 {[%clk 0:00:50.4]} 25... d4 {[%clk 0:01:58.6]} 26. Bxd4 {[%clk
0:00:48.5]} 26... Rad6 {[%clk 0:01:54.1]} 27. e3 {[%clk 0:00:46]} 27... h5
{[%clk 0:01:51.1]} 28. h4 {[%clk 0:00:29.5]} 28... Kh7 {[%clk 0:01:48.8]} 29. b4
{[%clk 0:00:25.8]} 29... Bxd4 {[%clk 0:01:45.3]} 30. exd4 {[%clk 0:00:25.2]}
30... Rxd4 {[%clk 0:01:45.3]} 31. Rxd4 {[%clk 0:00:25.1]} 31... Rxd4 {[%clk
0:01:46.2]} 32. Rb1 {[%clk 0:00:24.8]} 32... Rd6 {[%clk 0:01:45.1]} 33. b5
{[%clk 0:00:24.5]} 33... Rb6 {[%clk 0:01:46]} 34. Kg2 {[%clk 0:00:24.7]} 34...
Kg6 {[%clk 0:01:45.1]} 35. Kf3 {[%clk 0:00:24.7]} 35... Kf5 {[%clk 0:01:45.5]}
36. Ke3 {[%clk 0:00:23.3]} 36... Ke5 {[%clk 0:01:45.7]} 37. Rb2 {[%clk
0:00:21.8]} 37... f6 {[%clk 0:01:43.3]} 38. Rb1 {[%clk 0:00:21.2]} 38... Kd5
{[%clk 0:01:42.9]} 39. Kf4 {[%clk 0:00:20.7]} 39... Kc5 {[%clk 0:01:42.8]} 40.
Kf5 {[%clk 0:00:20.3]} 40... Rb7 {[%clk 0:01:39.9]} 41. b6 {[%clk 0:00:19]}
41... Kd4 {[%clk 0:01:38.3]} 42. Kg6 {[%clk 0:00:16.6]} 42... Ke4 {[%clk
0:01:37.9]} 43. Kxh5 {[%clk 0:00:16.2]} 43... Kf3 {[%clk 0:01:37.5]} 44. Rb2
{[%clk 0:00:16.3]} 44... f5 {[%clk 0:01:34.5]} 45. Kg5 {[%clk 0:00:15.7]} 45...
Ke4 {[%clk 0:01:22.6]} 46. h5 {[%clk 0:00:14.1]} 46... Kd3 {[%clk 0:01:13.3]}
47. Kxf5 {[%clk 0:00:12.8]} 47... Kc3 {[%clk 0:01:12.1]} 48. Rb1 {[%clk
0:00:12.4]} 48... Kc2 {[%clk 0:01:12]} 49. Rb5 {[%clk 0:00:11.9]} 49... Kc3
{[%clk 0:01:11.3]} 50. Kg6 {[%clk 0:00:11.4]} 50... Kc4 {[%clk 0:01:10.8]} 51.
Rb1 {[%clk 0:00:10.7]} 51... Kc3 {[%clk 0:01:09.3]} 52. g4 {[%clk 0:00:10.7]}
52... Kc2 {[%clk 0:01:08.6]} 53. Rb5 {[%clk 0:00:11]} 53... Kd3 {[%clk
0:01:06.6]} 54. f4 {[%clk 0:00:10.9]} 54... Kc4 {[%clk 0:01:05.8]} 55. Rb1
{[%clk 0:00:10.2]} 55... Kd4 {[%clk 0:01:05.7]} 56. f5 {[%clk 0:00:10.1]} 56...
Ke5 {[%clk 0:01:05.3]} 57. g5 {[%clk 0:00:10.4]} 57... Kf4 {[%clk 0:01:03.4]}
58. f6 {[%clk 0:00:10.2]} 58... gxf6 {[%clk 0:01:01.1]} 59. gxf6 {[%clk
0:00:09.8]} 59... Rb8 {[%clk 0:00:59.9]} 60. f7 {[%clk 0:00:10.1]} 60... Ra8
{[%clk 0:00:57.2]} 61. Kg7 {[%clk 0:00:10.2]} 61... Kg5 {[%clk 0:00:56]} 62.
f8=Q {[%clk 0:00:09.6]} 62... Rxf8 {[%clk 0:00:56.9]} 63. Kxf8 {[%clk
0:00:09.4]} 63... Kxh5 {[%clk 0:00:57.5]} 64. b7 {[%clk 0:00:10.1]} 64... Kg4
{[%clk 0:00:58.4]} 65. b8=Q {[%clk 0:00:08.8]} 65... Kf3 {[%clk 0:00:59.3]} 66.
Qe5 {[%clk 0:00:08.3]} 66... Kg4 {[%clk 0:00:55.2]} 67. Rb6 {[%clk 0:00:08.5]}
67... Kf3 {[%clk 0:00:50.1]} 68. Rf6+ {[%clk 0:00:09.4]} 68... Kg2 {[%clk
0:00:51]} 69. Qg5+ {[%clk 0:00:08.9]} 69... Kh1 {[%clk 0:00:51.9]} 70. Rh6#
{[%clk 0:00:08.9]} 1-0

[Event "*** SCC Grand Prix: Titled Tuesday Blitz"]
[Site "Chess.com"]
[Date "2020.07.21"]
[Round "9"]
[White "ArjunErigaisi2003"]
[Black "GadimbayliA"]
[Result "0-1"]
[WhiteElo "3038"]
[BlackElo "2888"]
[TimeControl "180+1"]
[EndTime "11:49:44 PDT"]
[Termination "GadimbayliA won by resignation"]

1. d4 {[%clk 0:03:00.9]} 1... d5 {[%clk 0:03:00]} 2. c4 {[%clk 0:03:00.7]} 2...
e5 {[%clk 0:03:00.4]} 3. dxe5 {[%clk 0:02:58.1]} 3... d4 {[%clk 0:03:01.3]} 4.
Nf3 {[%clk 0:02:56.1]} 4... Nc6 {[%clk 0:03:01.6]} 5. Nbd2 {[%clk 0:02:47]} 5...
Nge7 {[%clk 0:03:00.8]} 6. g3 {[%clk 0:02:43.7]} 6... Ng6 {[%clk 0:03:00.6]} 7.
Bg2 {[%clk 0:02:44.1]} 7... Ngxe5 {[%clk 0:03:00.8]} 8. O-O {[%clk 0:02:43.5]}
8... Nxf3+ {[%clk 0:02:58.5]} 9. Nxf3 {[%clk 0:02:40.4]} 9... Bc5 {[%clk
0:02:58.9]} 10. Bf4 {[%clk 0:02:36.3]} 10... O-O {[%clk 0:02:57.9]} 11. Nd2
{[%clk 0:02:34.2]} 11... a5 {[%clk 0:02:54.9]} 12. Rc1 {[%clk 0:02:30.2]} 12...
Be6 {[%clk 0:02:47.7]} 13. h4 {[%clk 0:02:26.1]} 13... h6 {[%clk 0:02:46.1]} 14.
Nb3 {[%clk 0:02:21.4]} 14... Ba7 {[%clk 0:02:44.5]} 15. Na1 {[%clk 0:02:05.6]}
15... Qe7 {[%clk 0:02:38.8]} 16. b3 {[%clk 0:02:02.6]} 16... Rad8 {[%clk
0:02:36.5]} 17. Nc2 {[%clk 0:02:01]} 17... Rfe8 {[%clk 0:02:31.6]} 18. Re1
{[%clk 0:01:59.5]} 18... Bc5 {[%clk 0:02:26.5]} 19. Bf3 {[%clk 0:01:56.3]} 19...
Bf5 {[%clk 0:02:22.6]} 20. Bd5 {[%clk 0:01:53.2]} 20... Bxc2 {[%clk 0:02:15]}
21. Qxc2 {[%clk 0:01:47.2]} 21... Nb4 {[%clk 0:02:15.1]} 22. Qf5 {[%clk
0:01:40.5]} 22... Nxa2 {[%clk 0:01:46.4]} 23. Ra1 {[%clk 0:01:39.1]} 23... Nb4
{[%clk 0:01:46.6]} 24. Rxa5 {[%clk 0:01:29.6]} 24... Nxd5 {[%clk 0:01:43.4]} 25.
cxd5 {[%clk 0:01:30.5]} 25... Bb4 {[%clk 0:01:43.7]} 26. Raa1 {[%clk 0:01:11.4]}
26... Bxe1 {[%clk 0:01:42.8]} 27. Rxe1 {[%clk 0:01:12.3]} 27... Qe4 {[%clk
0:01:33.4]} 28. Qxe4 {[%clk 0:01:10.1]} 28... Rxe4 {[%clk 0:01:34.3]} 29. Bxc7
{[%clk 0:01:09.9]} 29... Rxd5 {[%clk 0:01:34.3]} 30. f3 {[%clk 0:01:05.8]} 30...
Re6 {[%clk 0:01:34]} 31. Kf2 {[%clk 0:01:03.4]} 31... Rc6 {[%clk 0:01:33.2]} 32.
Bf4 {[%clk 0:01:02]} 32... Rc2 {[%clk 0:01:32.9]} 33. Rd1 {[%clk 0:01:00.2]}
33... d3 {[%clk 0:01:29.9]} 34. Rd2 {[%clk 0:01:00.7]} 34... Rxd2 {[%clk
0:01:29.6]} 35. Bxd2 {[%clk 0:01:01.6]} 35... dxe2 {[%clk 0:01:29]} 36. Kxe2
{[%clk 0:01:02.5]} 36... f6 {[%clk 0:01:28.2]} 37. g4 {[%clk 0:00:55.2]} 37...
Kf7 {[%clk 0:01:28.1]} 38. h5 {[%clk 0:00:55.3]} 38... Ke6 {[%clk 0:01:24.8]}
39. Bc3 {[%clk 0:00:50.9]} 39... Rd7 {[%clk 0:01:24.4]} 40. Ke3 {[%clk
0:00:49.4]} 40... Rd5 {[%clk 0:01:23]} 41. Ke4 {[%clk 0:00:47.1]} 41... Rb5
{[%clk 0:01:22.7]} 42. b4 {[%clk 0:00:46.9]} 42... Rd5 {[%clk 0:01:22.8]} 43. f4
{[%clk 0:00:45.1]} 43... Rd7 {[%clk 0:01:20.5]} 44. Bd4 {[%clk 0:00:39.2]} 44...
Kd6 {[%clk 0:01:17.6]} 45. Kf5 {[%clk 0:00:35.7]} 45... Kc6 {[%clk 0:00:53]} 46.
Bg1 {[%clk 0:00:33.8]} 46... Kd5 {[%clk 0:00:43.9]} 47. Bc5 {[%clk 0:00:30.2]}
47... Rd8 {[%clk 0:00:37.4]} 48. Kg6 {[%clk 0:00:26.7]} 48... Ke4 {[%clk
0:00:37.3]} 49. Kxg7 {[%clk 0:00:20]} 49... Kxf4 {[%clk 0:00:36.1]} 50. Kxh6
{[%clk 0:00:20.6]} 50... Kxg4 {[%clk 0:00:35.7]} 51. Kg6 {[%clk 0:00:21.1]}
51... f5 {[%clk 0:00:28]} 52. h6 {[%clk 0:00:19.2]} 52... f4 {[%clk 0:00:28.2]}
53. h7 {[%clk 0:00:18.1]} 53... Kg3 {[%clk 0:00:21.7]} 54. Kg7 {[%clk
0:00:17.2]} 54... f3 {[%clk 0:00:18.5]} 55. h8=Q {[%clk 0:00:16.3]} 55... Rxh8
{[%clk 0:00:15.4]} 56. Kxh8 {[%clk 0:00:17.2]} 56... f2 {[%clk 0:00:16.3]} 57.
Bxf2+ {[%clk 0:00:17.8]} 57... Kxf2 {[%clk 0:00:17.2]} 58. Kg7 {[%clk
0:00:17.1]} 58... Ke3 {[%clk 0:00:16]} 59. Kf6 {[%clk 0:00:15.6]} 59... Kd4
{[%clk 0:00:14.4]} 60. Kf5 {[%clk 0:00:08.9]} 60... b5 {[%clk 0:00:13.2]} 61.
Kf4 {[%clk 0:00:07.9]} 61... Kc4 {[%clk 0:00:11.6]} 62. Ke3 {[%clk 0:00:08.8]}
62... Kxb4 {[%clk 0:00:12.2]} 63. Kd2 {[%clk 0:00:09.7]} 63... Ka3 {[%clk
0:00:13.1]} 0-1

[Event "*** SCC Grand Prix: Titled Tuesday Blitz"]
[Site "Chess.com"]
[Date "2020.07.21"]
[Round "9"]
[White "poppy73"]
[Black "Larina_Marija"]
[Result "1-0"]
[WhiteElo "2247"]
[BlackElo "2100"]
[TimeControl "180+1"]
[EndTime "11:49:46 PDT"]
[Termination "poppy73 won by checkmate"]

1. e4 {[%clk 0:03:00.9]} 1... c6 {[%clk 0:02:58.2]} 2. Nf3 {[%clk 0:03:00.2]}
2... d5 {[%clk 0:02:55.7]} 3. Nc3 {[%clk 0:03:00.6]} 3... dxe4 {[%clk
0:02:54.2]} 4. Nxe4 {[%clk 0:03:01.5]} 4... Nf6 {[%clk 0:02:53.8]} 5. Qe2 {[%clk
0:03:02]} 5... Nxe4 {[%clk 0:02:52.4]} 6. Qxe4 {[%clk 0:03:02.9]} 6... Nd7
{[%clk 0:02:50.7]} 7. Bc4 {[%clk 0:03:00.7]} 7... Nf6 {[%clk 0:02:50.4]} 8. Qe2
{[%clk 0:02:51.5]} 8... Bg4 {[%clk 0:02:49.4]} 9. Bxf7+ {[%clk 0:02:45.8]} 9...
Kxf7 {[%clk 0:02:49]} 10. Ne5+ {[%clk 0:02:41.9]} 10... Ke8 {[%clk 0:02:45]} 11.
Nxg4 {[%clk 0:02:41.4]} 11... Nxg4 {[%clk 0:02:44.9]} 12. Qxg4 {[%clk
0:02:40.3]} 12... Qd6 {[%clk 0:02:41.1]} 13. d4 {[%clk 0:02:29.9]} 13... g6
{[%clk 0:02:36.4]} 14. O-O {[%clk 0:02:25.8]} 14... Bg7 {[%clk 0:02:36.1]} 15.
c3 {[%clk 0:02:23.7]} 15... Qd7 {[%clk 0:02:21.1]} 16. Qxd7+ {[%clk 0:02:17.8]}
16... Kxd7 {[%clk 0:02:22]} 17. Bf4 {[%clk 0:02:17.3]} 17... Bf6 {[%clk
0:02:20.4]} 18. Rfe1 {[%clk 0:02:15.5]} 18... h6 {[%clk 0:02:19.7]} 19. Be5
{[%clk 0:02:14.5]} 19... Rhe8 {[%clk 0:02:18.8]} 20. Re4 {[%clk 0:02:11.2]}
20... Bxe5 {[%clk 0:02:07.5]} 21. Rxe5 {[%clk 0:02:10.8]} 21... e6 {[%clk
0:02:07.8]} 22. Rae1 {[%clk 0:02:10.7]} 22... Re7 {[%clk 0:02:07.7]} 23. f4
{[%clk 0:02:06.3]} 23... Rae8 {[%clk 0:02:07.4]} 24. Kf2 {[%clk 0:02:05.1]}
24... b6 {[%clk 0:02:05.8]} 25. c4 {[%clk 0:02:00.3]} 25... Rf7 {[%clk
0:02:00.5]} 26. Ke3 {[%clk 0:01:54.6]} 26... Rf5 {[%clk 0:01:52.4]} 27. g3
{[%clk 0:01:50.3]} 27... Rxe5+ {[%clk 0:01:52]} 28. dxe5 {[%clk 0:01:46.6]}
28... c5 {[%clk 0:01:39.2]} 29. Rd1+ {[%clk 0:01:46.5]} 29... Kc7 {[%clk
0:01:39.5]} 30. Rd6 {[%clk 0:01:44.7]} 30... Re7 {[%clk 0:01:39.2]} 31. Ke4
{[%clk 0:01:44.4]} 31... h5 {[%clk 0:01:34.6]} 32. h3 {[%clk 0:01:43.7]} 32...
Re8 {[%clk 0:01:29.2]} 33. b3 {[%clk 0:01:42.9]} 33... Re7 {[%clk 0:01:28.8]}
34. g4 {[%clk 0:01:42.7]} 34... hxg4 {[%clk 0:01:28.5]} 35. hxg4 {[%clk
0:01:43.6]} 35... Re8 {[%clk 0:01:27.3]} 36. f5 {[%clk 0:01:42.4]} 36... gxf5+
{[%clk 0:01:26.9]} 37. gxf5 {[%clk 0:01:42.7]} 37... exf5+ {[%clk 0:01:26.7]}
38. Kxf5 {[%clk 0:01:43.1]} 38... Rf8+ {[%clk 0:01:26.7]} 39. Rf6 {[%clk
0:01:43.1]} 39... Rh8 {[%clk 0:01:25.2]} 40. Rf7+ {[%clk 0:01:42.5]} 40... Kc6
{[%clk 0:01:25]} 41. Rxa7 {[%clk 0:01:41.7]} 41... Rh5+ {[%clk 0:01:25]} 42. Kf6
{[%clk 0:01:39.9]} 42... Rh6+ {[%clk 0:01:25]} 43. Kg5 {[%clk 0:01:33.9]} 43...
Rh2 {[%clk 0:01:24.6]} 44. e6 {[%clk 0:01:30.3]} 44... Re2 {[%clk 0:01:23.6]}
45. Kf6 {[%clk 0:01:18.2]} 45... Rf2+ {[%clk 0:01:22.1]} 46. Ke7 {[%clk
0:01:14.5]} 46... Re2 {[%clk 0:01:19.5]} 47. Ra8 {[%clk 0:01:04.7]} 47... Kb7
{[%clk 0:01:14.1]} 48. Rh8 {[%clk 0:00:53.3]} 48... Kc7 {[%clk 0:01:13]} 49. Rh6
{[%clk 0:00:46.6]} 49... Rxa2 {[%clk 0:01:11.3]} 50. Kf7 {[%clk 0:00:46.4]}
50... Ra8 {[%clk 0:01:04.7]} 51. e7 {[%clk 0:00:45.3]} 51... Kd7 {[%clk
0:01:04.6]} 52. Rh5 {[%clk 0:00:35.7]} 52... b5 {[%clk 0:00:47.8]} 53. Rxc5
{[%clk 0:00:30.5]} 53... bxc4 {[%clk 0:00:46.6]} 54. bxc4 {[%clk 0:00:30.1]}
54... Rh8 {[%clk 0:00:22.8]} 55. e8=Q+ {[%clk 0:00:23.3]} 55... Rxe8 {[%clk
0:00:22.1]} 56. Rd5+ {[%clk 0:00:23.4]} 56... Kc6 {[%clk 0:00:20.8]} 57. Kxe8
{[%clk 0:00:24.3]} 57... Kc7 {[%clk 0:00:20.5]} 58. Ke7 {[%clk 0:00:23.9]} 58...
Kc6 {[%clk 0:00:20.6]} 59. Ke6 {[%clk 0:00:22.6]} 59... Kc7 {[%clk 0:00:20.6]}
60. Rd6 {[%clk 0:00:22.9]} 60... Kc8 {[%clk 0:00:20.7]} 61. Rd7 {[%clk
0:00:22.6]} 61... Kb8 {[%clk 0:00:20.9]} 62. Kd6 {[%clk 0:00:22.8]} 62... Kc8
{[%clk 0:00:21.6]} 63. Kc6 {[%clk 0:00:22.1]} 63... Kb8 {[%clk 0:00:22.1]} 64.
Rc7 {[%clk 0:00:22.3]} 64... Ka8 {[%clk 0:00:22.2]} 65. Kb6 {[%clk 0:00:22.7]}
65... Kb8 {[%clk 0:00:22]} 66. c5 {[%clk 0:00:22.7]} 66... Ka8 {[%clk
0:00:21.7]} 67. Rc8# {[%clk 0:00:23.6]} 1-0

[Event "*** SCC Grand Prix: Titled Tuesday Blitz"]
[Site "Chess.com"]
[Date "2020.07.21"]
[Round "9"]
[White "SHIVACalypso"]
[Black "SCIM"]
[Result "0-1"]
[WhiteElo "2364"]
[BlackElo "2572"]
[TimeControl "180+1"]
[EndTime "11:49:50 PDT"]
[Termination "SCIM won by resignation"]

1. Nf3 {[%clk 0:03:00.9]} 1... Nf6 {[%clk 0:02:58.9]} 2. c4 {[%clk 0:03:00]}
2... g6 {[%clk 0:02:56.3]} 3. g3 {[%clk 0:03:00.9]} 3... Bg7 {[%clk 0:02:53.7]}
4. Bg2 {[%clk 0:02:59.6]} 4... d5 {[%clk 0:02:53.7]} 5. O-O {[%clk 0:02:59.1]}
5... dxc4 {[%clk 0:02:50.2]} 6. Qa4+ {[%clk 0:02:57.6]} 6... Bd7 {[%clk
0:02:50.1]} 7. Qxc4 {[%clk 0:02:58.5]} 7... Bc6 {[%clk 0:02:49.7]} 8. d4 {[%clk
0:02:53.1]} 8... O-O {[%clk 0:02:46.2]} 9. Nc3 {[%clk 0:02:50.6]} 9... a6 {[%clk
0:02:30.2]} 10. Rd1 {[%clk 0:02:32.3]} 10... b5 {[%clk 0:02:30]} 11. Qd3 {[%clk
0:02:31.2]} 11... b4 {[%clk 0:02:25]} 12. d5 {[%clk 0:02:13]} 12... Bd7 {[%clk
0:02:04]} 13. Ne4 {[%clk 0:02:03.4]} 13... Bb5 {[%clk 0:02:02.9]} 14. Nxf6+
{[%clk 0:02:00.2]} 14... exf6 {[%clk 0:01:53.3]} 15. Qd2 {[%clk 0:02:01.1]}
15... a5 {[%clk 0:01:49.8]} 16. Nd4 {[%clk 0:01:58.4]} 16... Ba6 {[%clk
0:01:48.7]} 17. e4 {[%clk 0:01:45.6]} 17... Re8 {[%clk 0:01:44.1]} 18. a3 {[%clk
0:01:41.8]} 18... bxa3 {[%clk 0:01:32.4]} 19. Rxa3 {[%clk 0:01:39.5]} 19... f5
{[%clk 0:01:26.7]} 20. exf5 {[%clk 0:01:23.6]} 20... Bxd4 {[%clk 0:01:25.9]} 21.
Qxd4 {[%clk 0:01:21.2]} 21... Nc6 {[%clk 0:01:26.8]} 22. Qc3 {[%clk 0:01:07.3]}
22... Ne5 {[%clk 0:01:18.9]} 23. Bf4 {[%clk 0:00:55.7]} 23... Nc4 {[%clk
0:01:09.8]} 24. Ra4 {[%clk 0:00:38.1]} 24... g5 {[%clk 0:01:08.9]} 25. Be3
{[%clk 0:00:26]} 25... Nxe3 {[%clk 0:01:02.6]} 26. fxe3 {[%clk 0:00:26.9]} 26...
Bb5 {[%clk 0:00:38.4]} 27. Rad4 {[%clk 0:00:22.9]} 27... Qd6 {[%clk 0:00:36.3]}
28. e4 {[%clk 0:00:18.6]} 28... h6 {[%clk 0:00:33.5]} 29. Qe3 {[%clk 0:00:17.3]}
29... Re5 {[%clk 0:00:32.4]} 30. h4 {[%clk 0:00:17.2]} 30... f6 {[%clk
0:00:31.3]} 31. hxg5 {[%clk 0:00:17.3]} 31... hxg5 {[%clk 0:00:32.2]} 32. Kf2
{[%clk 0:00:17.7]} 32... Rae8 {[%clk 0:00:30.4]} 33. Qf3 {[%clk 0:00:15.2]}
33... R8e7 {[%clk 0:00:25.7]} 34. Rh1 {[%clk 0:00:14.2]} 34... Qc5 {[%clk
0:00:23.8]} 35. Qc3 {[%clk 0:00:12.6]} 35... Qb6 {[%clk 0:00:19.4]} 36. Kf3
{[%clk 0:00:10.2]} 36... g4+ {[%clk 0:00:15.9]} 37. Kf4 {[%clk 0:00:09.7]} 37...
Qd6 {[%clk 0:00:15.6]} 38. Ke3 {[%clk 0:00:07.7]} 38... Rxf5 {[%clk 0:00:15.2]}
39. Kd2 {[%clk 0:00:06.8]} 39... Rf2+ {[%clk 0:00:14.5]} 40. Kd1 {[%clk
0:00:04.8]} 40... Rxg2 {[%clk 0:00:14.5]} 41. Rf1 {[%clk 0:00:04.6]} 41... Qxg3
{[%clk 0:00:14.2]} 42. Qxg3 {[%clk 0:00:04]} 42... Rxg3 {[%clk 0:00:14.5]} 43.
Rxf6 {[%clk 0:00:04.8]} 43... Rg1+ {[%clk 0:00:12.9]} 44. Kd2 {[%clk 0:00:04.7]}
44... Kg7 {[%clk 0:00:13.6]} 45. Rf5 {[%clk 0:00:03.4]} 45... g3 {[%clk
0:00:12.5]} 46. Ke3 {[%clk 0:00:03.5]} 46... Re1+ {[%clk 0:00:11.4]} 47. Kf3
{[%clk 0:00:03.4]} 47... Rf1+ {[%clk 0:00:10.6]} 48. Kxg3 {[%clk 0:00:03.7]}
48... Rxf5 {[%clk 0:00:11.1]} 49. exf5 {[%clk 0:00:04.6]} 49... Kf6 {[%clk
0:00:11.4]} 50. Kf4 {[%clk 0:00:04.8]} 50... Re5 {[%clk 0:00:11]} 51. d6 {[%clk
0:00:04.9]} 51... Rxf5+ {[%clk 0:00:11.9]} 52. Kg4 {[%clk 0:00:05]} 52... Rg5+
{[%clk 0:00:10.9]} 53. Kf4 {[%clk 0:00:05]} 53... Rf5+ {[%clk 0:00:09.7]} 54.
Kg4 {[%clk 0:00:05.4]} 54... cxd6 {[%clk 0:00:10.2]} 55. Rxd6+ {[%clk
0:00:05.3]} 55... Ke7 {[%clk 0:00:10.2]} 56. Rb6 {[%clk 0:00:05.2]} 56... Rc5
{[%clk 0:00:09.2]} 57. Kf4 {[%clk 0:00:05]} 57... Kd7 {[%clk 0:00:09.6]} 58. Ke4
{[%clk 0:00:04.3]} 58... Kc7 {[%clk 0:00:09.9]} 59. Rh6 {[%clk 0:00:03.9]} 59...
Rc2 {[%clk 0:00:09.8]} 60. b3 {[%clk 0:00:03.4]} 60... Rc3 {[%clk 0:00:08.7]}
61. Rh7+ {[%clk 0:00:03.6]} 61... Kb6 {[%clk 0:00:08.4]} 62. Rh6+ {[%clk
0:00:03.9]} 62... Bc6+ {[%clk 0:00:08.9]} 63. Kd4 {[%clk 0:00:03.5]} 63... Rxb3
{[%clk 0:00:09.8]} 0-1